bitfinex/quotes_ETHUSD_20250324
["timestamp","ask_amount","ask_price","bid_price","bid_amount"]
[1742827274145,4.78904,2088.1,2088.0,4.953]
[1742827274665,12.17464,2088.1,2088.0,4.953]
[1742827274819,12.17464,2088.1,2087.4,25.313]
[1742827274820,4.79041,2087.5,2087.4,25.313]
[1742827275003,12.16581,2087.5,2087.4,25.313]
[1742827275438,7.3754,2087.5,2087.4,30.265]
[1742827276037,12.16581,2087.5,2087.4,30.265]
[1742827276645,7.3754,2087.5,2087.4,30.265]
[1742827276954,7.3754,2087.5,2087.4,35.05564]
[1742827276955,6.09,2087.5,2087.4,35.05564]
[1742827277153,6.09,2087.5,2087.4,35.60564]
[1742827277309,6.09,2087.9,2087.5,5.34036]
[1742827277509,6.09,2087.9,2087.7,0.55]
[1742827277723,6.09,2087.9,2087.4,35.0555]
[1742827277724,10.8795,2087.9,2087.8,4.953]
[1742827277943,6.09,2087.9,2087.8,4.953]
[1742827278239,10.8795,2087.9,2087.8,4.953]
[1742827278834,12.577408,2087.9,2087.8,4.953]
[1742827279011,4.79003,2087.7,2087.4,25.313]
[1742827279213,4.79041,2087.5,2087.4,25.313]
[1742827279441,4.79041,2087.5,2087.4,30.266]
[1742827279748,10.88041,2087.5,2087.4,30.266]
[1742827280107,12.58325,2087.5,2087.4,30.266]
[1742827281514,12.58325,2087.5,2087.4,30.38523356]
[1742827281709,15.58325,2087.5,2087.4,30.38523356]
[1742827282528,15.58325,2087.5,2087.4,25.43223356]
[1742827282725,16.99615,2087.5,2087.4,30.38523356]
[1742827282926,13.99615,2087.5,2087.4,5.07223356]
[1742827283121,12.29331,2087.5,2087.4,5.07223356]
[1742827283620,10.88041,2087.5,2087.4,5.07223356]
[1742827285843,6.09,2087.5,2087.4,5.07223356]
[1742827286021,10.88041,2087.5,2087.4,5.07223356]
[1742827288120,12.20981,2087.5,2087.4,0.11923356]
[1742827288339,14.388806,2087.5,2087.4,5.07323356]
[1742827288539,6.09,2087.8,2087.4,5.07323356]
[1742827288730,4.78993,2087.8,2087.5,0.55]
[1742827288929,4.78977,2087.8,2087.5,0.55]
[1742827289250,4.78977,2087.8,2087.6,0.09974772]
[1742827289744,9.57969,2087.8,2087.6,0.09974772]
[1742827289945,6.09,2087.9,2087.7,0.55]
[1742827290157,10.87951,2087.9,2087.8,4.953]
[1742827290334,10.87951,2087.9,2087.8,5.07072004]
[1742827290540,6.09,2087.9,2087.8,5.07072004]
[1742827291439,10.8795,2087.9,2087.8,5.07072004]
[1742827292838,10.8795,2087.9,2087.8,0.11772004]
[1742827293043,12.2887,2087.9,2087.8,4.953]
[1742827293353,6.09,2087.9,2087.8,5.05110003]
[1742827293740,6.09,2088.3,2087.8,5.60110003]
[1742827293949,4.78859,2088.3,2088.0,0.55]
[1742827294139,10.87835,2088.4,2088.0,5.33926]
[1742827294340,15.66692,2088.4,2088.1,0.09658171]
[1742827294528,15.66692,2088.4,2088.2,4.953]
[1742827294734,4.78858,2088.3,2088.2,5.04916641]
[1742827296225,10.87845,2088.4,2088.2,5.04916641]
[1742827297348,6.09,2088.4,2088.2,5.04916641]
[1742827297547,4.78817,2088.5,2088.2,5.04916641]
[1742827298255,7.4667,2088.7,2088.2,5.04916641]
[1742827298442,4.78844,2088.4,2088.2,5.04916641]
[1742827298644,4.78822,2088.5,2088.2,5.04916641]
[1742827299155,4.78835,2088.4,2088.2,5.04916641]
[1742827299448,9.57652,2088.5,2088.2,5.04916641]
[1742827299652,7.4804,2089.1,2088.6,0.55]
[1742827299863,7.4804,2089.1,2088.5,4.78812]
[1742827299864,6.09,2089.1,2088.8,0.55]
[1742827300020,10.87677,2089.1,2088.9,0.1080482]
[1742827300456,4.78697,2089.0,2088.9,0.1080482]
[1742827300820,6.353344,2089.0,2088.9,0.1080482]
[1742827301027,6.353344,2089.0,2088.9,4.952]
[1742827301248,6.353344,2089.0,2088.9,5.0600482]
[1742827301418,7.697544,2089.0,2088.9,5.0600482]
[1742827302730,13.787544,2089.0,2088.9,5.0600482]
[1742827303056,13.787544,2089.0,2088.9,4.952]
[1742827303350,12.22117,2089.0,2088.9,4.952]
[1742827304127,4.78743,2088.8,2088.7,25.318]
[1742827304428,4.78728,2088.9,2088.7,30.269]
[1742827304855,9.57467,2088.9,2088.7,30.269]
[1742827305044,6.09,2089.0,2088.7,30.269]
[1742827305254,10.87711,2089.0,2088.7,30.269]
[1742827305432,6.09,2089.0,2088.7,30.269]
[1742827306034,6.09,2089.0,2088.8,0.04787026]
[1742827306555,6.09,2089.0,2088.8,4.83525951]
[1742827306757,6.09,2089.0,2088.8,0.04786951]
[1742827307131,6.09,2089.0,2088.8,0.55]
[1742827308154,10.87715,2089.0,2088.9,4.951]
[1742827308355,12.26815,2089.0,2088.9,4.951]
[1742827309359,6.09,2089.0,2088.9,4.951]
[1742827310145,6.09,2089.0,2088.9,10.2882]
[1742827310464,6.09,2089.0,2088.9,5.501]
[1742827310849,0.01,2089.4,2089.0,5.33697]
[1742827311243,4.78641,2089.3,2089.1,25.311]
[1742827311448,4.78652,2089.2,2089.1,25.311]
[1742827311838,12.29172,2089.2,2089.1,30.261]
[1742827312038,14.000533,2089.2,2089.1,30.261]
[1742827313853,14.000533,2089.2,2089.1,30.26]
[1742827315654,4.78789,2088.6,2088.5,25.308]
[1742827315829,4.78919,2088.1,2087.9,25.308]
[1742827316031,4.78927,2088.0,2087.9,25.308]
[1742827316246,7.78927,2088.0,2087.9,30.257]
[1742827317235,7.78927,2088.0,2087.9,25.308]
[1742827317461,7.78927,2088.0,2087.9,30.257]
[1742827318568,4.78927,2088.0,2087.9,30.257]
[1742827319979,7.78927,2088.0,2087.9,30.258]
[1742827320485,13.87927,2088.0,2087.9,30.258]
[1742827320687,6.09,2088.0,2087.9,30.258]
[1742827320986,10.87927,2088.0,2087.9,30.258]
[1742827321389,15.446114,2088.0,2087.9,30.258]
[1742827321859,16.756514,2088.0,2087.9,30.258]
[1742827325294,13.87927,2088.0,2087.9,30.258]
[1742827325649,7.78927,2088.0,2087.9,30.258]
[1742827325961,6.09,2088.1,2087.9,30.258]
[1742827326291,1.3109,2088.7,2088.0,1.8707]
[1742827326574,4.78894,2088.2,2088.0,1.3207]
[1742827326778,4.78904,2088.1,2088.0,1.3207]
[1742827326943,4.78894,2088.2,2088.0,1.3207]
[1742827327970,4.78904,2088.1,2088.0,1.3207]
[1742827328370,4.78904,2088.1,2087.9,25.308]
[1742827328371,4.78927,2088.0,2087.9,25.308]
[1742827328558,4.78927,2088.0,2087.9,30.258]
[1742827329382,6.09,2088.4,2087.9,30.62179067]
[1742827329583,6.09,2088.6,2088.1,0.55]
[1742827329752,4.78861,2088.3,2088.1,0.55]
[1742827329953,4.78882,2088.2,2088.0,1.3863]
[1742827330685,9.57778,2088.2,2088.0,1.3863]
[1742827330879,4.78863,2088.3,2088.0,1.3863]
[1742827331485,4.78886,2088.2,2088.0,1.3863]
[1742827332081,4.78886,2088.2,2087.9,30.258]
[1742827332286,7.78927,2088.0,2087.9,25.308]
[1742827332492,7.78927,2088.0,2087.9,30.258]
[1742827333471,4.78927,2088.0,2087.9,30.258]
[1742827333867,7.78927,2088.0,2087.9,30.258]
[1742827334658,10.08443569,2088.0,2087.9,30.258]
[1742827335173,16.17443569,2088.0,2087.9,30.258]
[1742827335369,17.51943569,2088.0,2087.9,30.258]
[1742827335792,4.79087,2087.3,2087.2,0.96857408]
[1742827336087,4.79087,2087.3,2087.2,30.267]
[1742827336265,4.79087,2087.3,2087.2,25.317]
[1742827336471,4.79071,2087.4,2087.2,30.267]
[1742827337170,4.79087,2087.3,2087.2,30.267]
[1742827338290,4.79054,2087.5,2087.2,30.267]
[1742827338587,4.78997,2087.7,2087.3,1.3641]
[1742827338781,4.7902,2087.6,2087.3,1.3641]
[1742827338974,4.7896,2087.9,2087.4,4.8384334]
[1742827339183,4.7896,2087.9,2087.4,4.79049]
[1742827339392,4.78983,2087.8,2087.4,4.79049]
[1742827339577,4.7896,2087.9,2087.4,0.55]
[1742827339779,10.87927,2088.0,2087.4,0.55]
[1742827339960,3.0,2087.9,2087.2,25.317]
[1742827340290,3.0,2087.9,2087.3,4.95]
[1742827340291,4.79079,2087.4,2087.3,4.95]
[1742827340485,4.79064,2087.4,2087.3,4.95]
[1742827341272,4.79043,2087.5,2087.3,4.95]
[1742827341675,4.79064,2087.4,2087.3,4.95]
[1742827341991,4.79046,2087.5,2087.3,4.95]
[1742827342495,6.09,2087.6,2087.4,1.2905]
[1742827342793,6.09,2087.6,2087.4,6.08109]
[1742827343000,6.09,2087.6,2087.5,4.79041]
[1742827343363,10.87925,2088.1,2087.7,1.885]
[1742827343567,10.87925,2088.1,2087.8,4.95]
[1742827343964,6.09,2088.1,2087.9,0.55]
[1742827344159,10.87849,2088.4,2088.0,1.2861]
[1742827344363,6.09,2088.4,2088.1,25.321]
[1742827344560,4.78881,2088.2,2088.1,25.321]
[1742827344865,4.78881,2088.2,2088.1,30.271]
[1742827345066,7.78881,2088.2,2088.1,30.271]
[1742827345781,13.87881,2088.2,2088.1,25.321]
[1742827345986,16.414936,2088.2,2088.1,30.271]
[1742827346895,16.414936,2088.2,2088.1,4.95]
[1742827349087,13.87881,2088.2,2088.1,4.95]
[1742827350799,10.87881,2088.2,2088.1,4.95]
[1742827351591,6.09,2088.2,2088.1,4.95]
[1742827351900,4.78832,2088.5,2088.2,1.3321]
[1742827352197,6.09,2088.6,2088.3,0.55]
[1742827352397,6.09,2089.0,2088.5,1.8266]
[1742827352725,7.78752,2088.8,2088.6,30.269]
[1742827352899,4.78743,2088.9,2088.6,30.269]
[1742827353105,10.87699,2089.0,2088.6,35.05672]
[1742827353269,10.87699,2089.0,2088.6,35.05688]
[1742827353469,10.87699,2089.0,2088.6,35.0568]
[1742827354203,4.7872,2088.9,2088.6,30.269]
[1742827354399,4.78754,2088.8,2088.6,30.269]
[1742827355200,4.78766,2088.7,2088.6,30.269]
[1742827355705,6.223903,2088.7,2088.6,30.268]
[1742827356200,16.586303,2088.7,2088.6,30.268]
[1742827356387,16.586303,2088.7,2087.9,0.35505533]
[1742827356388,4.78927,2088.0,2087.9,1.3795]
[1742827356595,4.78927,2088.0,2087.9,26.6935]
[1742827356792,4.78927,2088.0,2087.9,25.314]
[1742827357303,10.87927,2088.0,2087.9,25.314]
[1742827357497,13.87927,2088.0,2087.9,25.314]
[1742827357696,13.87927,2088.0,2087.9,30.262]
[1742827357884,6.09,2088.0,2087.9,30.262]
[1742827358087,4.78823,2088.5,2087.9,32.1438]
[1742827358410,15.66652,2088.5,2088.0,4.78912]
[1742827359106,4.78843,2088.4,2088.0,4.78912]
[1742827359289,4.78859,2088.3,2088.0,0.55]
[1742827359896,4.78859,2088.3,2088.1,4.948]
[1742827360099,4.78881,2088.2,2088.1,4.948]
[1742827363312,4.78866,2088.3,2088.1,4.948]
[1742827363616,6.10734,2088.8,2088.4,4.78824]
[1742827363617,12.19725,2088.8,2088.4,4.78824]
[1742827363931,4.78722,2088.9,2088.5,9.73504]
[1742827364126,4.78698,2089.0,2088.6,1.3825]
[1742827364429,4.78687,2089.1,2088.7,0.55]
[1742827364635,4.78687,2089.1,2088.8,25.315]
[1742827364784,4.78697,2089.0,2088.9,4.947]
[1742827365521,4.7872,2088.9,2088.8,25.315]
[1742827365723,4.7872,2088.9,2088.8,30.262]
[1742827366294,4.7872,2088.9,2088.8,25.315]
[1742827366497,6.171,2088.9,2088.8,30.262]
[1742827366703,10.607094,2088.9,2088.8,30.262]
[1742827367900,16.697094,2088.9,2088.8,30.262]
[1742827368112,16.697094,2088.9,2088.8,4.947]
[1742827368419,16.697094,2088.9,2088.2,25.312]
[1742827368420,4.78858,2088.3,2088.2,25.312]
[1742827369111,7.78858,2088.3,2088.2,25.312]
[1742827369319,9.658095,2088.3,2088.2,25.312]
[1742827369628,9.658095,2088.3,2088.2,30.258]
[1742827371724,15.748095,2088.3,2088.2,30.258]
[1742827372097,17.048195,2088.3,2088.2,30.258]
[1742827372919,13.87858,2088.3,2088.2,30.258]
[1742827373105,6.09,2088.3,2088.2,30.258]
[1742827373306,4.78843,2088.4,2088.2,30.258]
[1742827373307,6.09,2088.5,2088.3,1.3157]
[1742827373713,4.78835,2088.4,2088.3,1.3157]
[1742827373914,10.87803,2088.6,2088.2,30.258]
[1742827374096,10.87682,2089.1,2088.5,6.11059]
[1742827374322,15.66374,2089.1,2088.6,10.28471]
[1742827374495,10.87678,2089.1,2088.7,4.78765]
[1742827374814,6.09,2089.1,2088.9,1.379]
[1742827375023,4.78655,2089.2,2089.0,4.946]
[1742827375206,4.78655,2089.2,2089.1,25.313]
[1742827375407,4.79615,2089.4,2089.1,25.313]
[1742827375610,0.01,2089.4,2089.1,25.313]
[1742827375818,4.7961,2089.4,2089.1,25.313]
[1742827376629,0.01,2089.4,2089.2,4.78631]
[1742827376799,0.01,2089.4,2089.3,6.70339]
[1742827376995,4.79606,2089.4,2089.3,1.3671]
[1742827377207,4.7863,2089.3,2089.1,25.313]
[1742827377926,4.78652,2089.2,2089.1,25.313]
[1742827378096,4.78652,2089.2,2089.1,30.259]
[1742827378303,3.0,2089.3,2089.1,30.259]
[1742827378621,4.78652,2089.2,2089.1,30.259]
[1742827379929,4.7961,2089.4,2089.1,30.259]
[1742827380140,0.01,2089.4,2089.1,30.259]
[1742827380308,0.01,2089.4,2089.2,1.3283]
[1742827381445,4.79606,2089.4,2089.1,30.259]
[1742827381929,4.78639,2089.3,2089.1,30.259]
[1742827382132,4.78652,2089.2,2089.1,30.259]
[1742827382704,7.78652,2089.2,2089.1,30.258]
[1742827382912,10.270657,2089.2,2089.1,30.258]
[1742827383333,4.78652,2089.2,2089.1,30.258]
[1742827383536,6.16879,2089.3,2089.1,30.258]
[1742827383537,4.78639,2089.3,2089.1,30.258]
[1742827383743,6.1,2089.4,2089.1,30.258]
[1742827384035,10.88606,2089.4,2089.1,30.258]
[1742827384435,4.78652,2089.2,2089.1,30.258]
[1742827384642,4.7865,2089.3,2089.1,30.258]
[1742827384807,4.78652,2089.2,2089.1,30.258]
[1742827385441,10.88611,2089.4,2089.1,30.258]
[1742827385813,4.78639,2089.3,2089.1,30.258]
[1742827386017,4.78652,2089.2,2089.1,30.258]
[1742827386766,7.78652,2089.2,2089.1,25.313]
[1742827386912,4.78781,2088.7,2088.4,26.6967]
[1742827387246,4.78805,2088.6,2088.5,4.944]
[1742827388741,4.78812,2088.5,2088.4,25.306]
[1742827388940,4.78812,2088.5,2088.4,30.25]
[1742827388941,13.87812,2088.5,2088.4,30.25]
[1742827389447,6.09,2088.5,2088.4,30.25]
[1742827390956,4.78767,2088.7,2088.4,30.25]
[1742827390957,6.09,2088.7,2088.4,31.5897]
[1742827391268,4.78707,2089.0,2088.5,4.78804]
[1742827391426,4.78732,2088.9,2088.5,4.78804]
[1742827391630,4.78746,2088.8,2088.4,36.37803]
[1742827391830,3.0,2089.0,2088.4,25.306]
[1742827392029,4.78766,2088.7,2088.5,4.944]
[1742827392226,9.57618,2088.6,2088.4,25.306]
[1742827392422,4.78809,2088.6,2088.5,4.944]
[1742827392643,4.78812,2088.5,2088.4,25.306]
[1742827392829,7.78812,2088.5,2088.4,30.25]
[1742827393447,4.78812,2088.5,2088.4,30.25]
[1742827394348,4.78793,2088.6,2088.4,30.25]
[1742827394521,4.78812,2088.5,2088.4,30.25]
[1742827395723,4.78795,2088.6,2088.4,30.25]
[1742827396118,15.66557,2088.7,2088.4,30.25]
[1742827396349,4.78805,2088.6,2088.4,30.25]
[1742827396549,10.87805,2088.6,2088.4,30.25]
[1742827396747,6.09,2088.6,2088.4,30.25]
[1742827396946,10.87797,2088.6,2088.4,30.25]
[1742827397122,10.87797,2088.6,2088.4,25.306]
[1742827397123,4.78812,2088.5,2088.4,25.306]
[1742827397326,4.78812,2088.5,2088.4,30.25]
[1742827397728,7.78812,2088.5,2088.4,30.25]
[1742827398250,9.12212,2088.5,2088.4,30.25]
[1742827398454,11.1146657,2088.5,2088.4,30.25]
[1742827398820,11.1146657,2088.5,2088.4,30.251]
[1742827399027,17.2046657,2088.5,2088.4,30.251]
[1742827399360,4.78983,2087.8,2087.7,25.309]
[1742827399570,6.09,2087.8,2087.7,25.309]
[1742827400558,6.09,2087.8,2087.7,30.253]
[1742827401742,6.09,2087.8,2087.7,36.99526]
[1742827402274,6.09,2088.5,2088.0,4.78916]
[1742827402422,7.4343,2088.6,2088.1,6.3473]
[1742827402624,6.09,2088.6,2088.1,11.13615]
[1742827402820,10.87803,2088.6,2088.2,4.7887]
[1742827403054,10.87803,2088.6,2088.2,0.55]
[1742827403238,6.09,2088.6,2088.3,1.2756]
[1742827403431,4.78768,2088.7,2088.3,6.06417]
[1742827403947,4.78768,2088.7,2088.4,25.35987776]
[1742827404159,12.194,2089.0,2088.5,9.73291]
[1742827404328,4.78731,2088.9,2088.5,4.945]
[1742827404531,9.57466,2088.9,2088.5,4.945]
[1742827404729,10.877,2089.0,2088.6,0.55]
[1742827405057,4.78764,2088.8,2088.5,4.945]
[1742827405239,9.57463,2088.9,2088.5,4.945]
[1742827405443,4.78723,2088.9,2088.5,4.945]
[1742827405633,4.78757,2088.8,2088.5,4.945]
[1742827405832,9.57523,2088.8,2088.5,4.945]
[1742827406063,4.78721,2088.9,2088.5,4.945]
[1742827406453,4.78753,2088.8,2088.5,4.945]
[1742827406756,9.57461,2088.9,2088.5,4.945]
[1742827406950,9.5746,2088.9,2088.5,4.945]
[1742827407153,4.78721,2088.9,2088.5,4.945]
[1742827407346,10.877,2089.0,2088.5,4.945]
[1742827407548,10.877,2089.0,2088.6,1.3487]
[1742827407749,10.877,2089.0,2088.7,0.55]
[1742827407750,6.09,2089.0,2088.7,0.55]
[1742827407959,6.09,2089.0,2088.7,5.33749]
[1742827408162,6.09,2089.0,2088.7,10.12506]
[1742827408460,6.09,2089.0,2088.7,5.33749]
[1742827408662,10.88609,2089.4,2088.9,6.19697]
[1742827408830,10.88609,2089.4,2089.0,4.944]
[1742827409237,10.88606,2089.4,2089.0,9.73087]
[1742827409437,10.88606,2089.4,2089.0,4.944]
[1742827409967,4.7863,2089.3,2089.0,4.944]
[1742827410369,10.88606,2089.4,2089.0,9.73095]
[1742827410663,4.78635,2089.3,2089.0,4.944]
[1742827410866,10.88606,2089.4,2089.0,4.944]
[1742827411066,6.1,2089.4,2089.1,0.55]
[1742827411858,6.1,2089.4,2089.1,5.33673]
[1742827412068,6.1,2089.4,2089.1,0.55]
[1742827412254,6.1,2089.4,2089.1,5.33674]
[1742827412450,0.01,2089.4,2089.2,4.78646]
[1742827412646,0.01,2089.4,2089.3,25.308]
[1742827413436,0.01,2089.4,2089.3,27.2089]
[1742827413642,0.01,2089.4,2089.3,26.6589]
[1742827414743,0.01,2089.4,2089.3,31.99519]
[1742827415136,0.01,2089.4,2089.3,34.99519]
[1742827418051,0.1220041,2090.0,2089.9,4.78491]
[1742827418270,0.1220041,2090.0,2089.9,11.56541]
[1742827419145,0.1220041,2090.0,2089.9,11.92540165]
[1742827420146,4.1e-06,2090.0,2089.9,21.04540165]
[1742827422356,4.1e-06,2090.0,2089.9,16.10340165]
[1742827422557,4.1e-06,2090.0,2089.9,21.04440165]
[1742827422763,4.1e-06,2090.0,2089.9,21.98301251]
[1742827423178,4.78171,2091.3,2090.9,6.05707]
[1742827423375,9.56362,2091.3,2091.0,30.234]
[1742827423555,4.7821,2091.2,2091.0,30.234]
[1742827423742,4.78217,2091.1,2091.0,30.234]
[1742827423943,4.78279,2090.9,2090.5,0.55]
[1742827424179,9.56555,2090.9,2090.6,25.294]
[1742827424482,4.78276,2090.9,2090.6,25.294]
[1742827424782,4.78263,2090.9,2090.6,25.64876224]
[1742827425142,9.56544,2090.9,2090.7,4.939]
[1742827425451,4.78263,2090.9,2090.7,4.939]
[1742827425782,6.09,2091.2,2090.7,4.939]
[1742827426078,10.87197,2091.2,2090.8,6.07805]
[1742827426376,10.87197,2091.2,2090.8,1.2952]
[1742827426588,10.87197,2091.2,2090.8,6.07801]
[1742827426766,4.78249,2091.0,2090.7,0.55]
[1742827426967,4.78249,2091.0,2090.8,4.939]
[1742827427288,4.78218,2091.1,2090.8,4.939]
[1742827427592,4.78217,2091.1,2090.8,4.939]
[1742827428155,6.09,2091.2,2090.8,4.939]
[1742827428371,6.09,2091.2,2091.0,4.78235]
[1742827428585,6.09,2091.2,2090.9,6.07913]
[1742827428769,4.78252,2091.0,2090.8,4.939]
[1742827429586,4.78235,2091.1,2090.8,4.939]
[1742827429759,7.792721,2091.2,2090.8,4.939]
[1742827429960,9.56452,2091.1,2090.8,4.939]
[1742827430166,4.78248,2091.0,2090.8,4.939]
[1742827430367,9.56508,2091.0,2090.8,4.939]
[1742827430776,4.78248,2091.0,2090.8,4.939]
[1742827431086,9.56458,2091.1,2090.8,4.939]
[1742827431255,4.78242,2091.0,2090.8,4.939]
[1742827431455,9.565,2091.0,2090.8,4.939]
[1742827431664,4.78242,2091.0,2090.8,4.939]
[1742827432908,4.78262,2090.9,2090.8,4.939]
[1742827433067,9.56501,2091.0,2090.8,4.939]
[1742827433262,6.53513001,2091.0,2090.8,4.939]
[1742827433463,1.75271001,2091.0,2090.8,4.939]
[1742827433663,0.01,2091.4,2090.9,1.3426]
[1742827433867,0.01,2091.4,2091.1,4.78197]
[1742827434089,0.01,2091.4,2091.2,4.937]
[1742827434597,4.79158,2091.4,2091.2,5.29065771]
[1742827434908,4.78171,2091.3,2091.2,5.29065771]
[1742827435196,0.94581813,2091.4,2091.2,5.29065771]
[1742827435359,0.01,2091.4,2091.2,5.29065771]
[1742827435901,4.79153,2091.4,2091.2,5.29065771]
[1742827436083,0.01,2091.4,2091.2,5.29065771]
[1742827436261,0.01,2091.4,2091.2,10.07244771]
[1742827437393,0.01,2091.4,2091.2,5.29065771]
[1742827437596,0.01,2091.4,2091.2,10.07257771]
[1742827437774,0.01,2091.4,2091.2,5.29065771]
[1742827437977,0.01,2091.4,2091.2,10.07258771]
[1742827438496,0.01,2091.4,2091.2,5.29065771]
[1742827438673,0.01,2091.4,2091.2,10.07243771]
[1742827439303,0.01,2091.4,2091.2,5.29065771]
[1742827440379,4.79164,2091.4,2091.2,5.29065771]
[1742827440573,4.79164,2091.4,2091.2,0.35365771]
[1742827440899,4.79164,2091.4,2091.3,4.936]
[1742827441084,6.18368,2091.3,2090.9,4.78258]
[1742827441287,4.78197,2091.2,2091.0,30.215]
[1742827441595,0.01,2091.4,2091.0,34.99736]
[1742827441901,4.79152,2091.4,2091.0,39.77966]
[1742827442102,4.79152,2091.4,2091.0,34.9973]
[1742827442297,9.5732,2091.4,2091.0,34.9973]
[1742827442504,4.4086,2091.3,2091.0,25.279]
[1742827442705,4.78365,2090.5,2090.1,4.78441]
[1742827442871,4.78383,2090.4,2090.2,30.215]
[1742827443196,9.5678,2090.4,2090.2,30.215]
[1742827443803,9.56773,2090.4,2090.2,30.215]
[1742827444004,4.784,2090.3,2090.2,25.279]
[1742827444204,4.784,2090.3,2090.2,30.215]
[1742827444380,4.78383,2090.4,2090.2,30.215]
[1742827444890,4.784,2090.3,2090.2,30.215]
[1742827445306,3.0,2090.2,2089.6,0.97940884]
[1742827445480,3.0,2090.2,2089.7,4.935]
[1742827445481,4.78503,2089.9,2089.7,4.935]
[1742827445680,4.78449,2090.1,2089.7,4.98285035]
[1742827445880,7.78437,2090.2,2089.7,14.50536]
[1742827446081,12.23665,2090.3,2089.9,4.78479]
[1742827446322,12.236,2090.6,2090.2,4.78423]
[1742827446487,9.14603,2090.6,2090.3,4.936]
[1742827446683,9.14603,2090.6,2090.3,5.29347129]
[1742827447704,4.78295,2090.8,2090.4,6.15524]
[1742827447875,4.78295,2090.8,2090.5,25.282]
[1742827448078,4.78318,2090.7,2090.5,25.282]
[1742827448909,4.78289,2090.8,2090.5,25.282]
[1742827449235,4.78311,2090.7,2090.5,25.282]
[1742827449708,4.78331,2090.6,2090.5,25.282]
[1742827450277,4.78311,2090.7,2090.5,25.282]
[1742827450480,4.78286,2090.8,2090.5,25.282]
[1742827450683,4.78313,2090.7,2090.5,25.282]
[1742827451310,4.78331,2090.6,2090.5,25.282]
[1742827452404,4.78313,2090.7,2090.5,25.282]
[1742827453512,4.78331,2090.6,2090.5,25.282]
[1742827454026,6.10361,2090.6,2090.5,30.218]
[1742827455425,12.19361,2090.6,2090.5,30.218]
[1742827457133,10.87331,2090.6,2090.5,30.218]
[1742827459237,12.14731,2090.6,2090.5,30.218]
[1742827459528,17.318637,2090.6,2090.5,25.282]
[1742827459942,17.318637,2090.6,2090.5,30.218]
[1742827461315,4.78468,2090.0,2089.9,25.287]
[1742827461739,10.87468,2090.0,2089.9,25.287]
[1742827461959,13.87468,2090.0,2089.9,25.287]
[1742827462453,13.87468,2090.0,2089.9,30.223]
[1742827462636,16.348716,2090.0,2089.9,30.223]
[1742827462950,13.87468,2090.0,2089.9,30.223]
[1742827464770,15.19598,2090.0,2089.9,30.223]
[1742827471109,6.09,2090.0,2089.9,30.223]
[1742827473154,12.1473,2090.5,2090.0,6.05759]
[1742827473507,3.0,2090.4,2090.1,4.78439]
[1742827473818,6.09,2090.6,2090.2,4.78402]
[1742827474019,6.09,2090.6,2090.3,4.937]
[1742827475614,6.09,2090.6,2090.3,14.50468]
[1742827475953,6.09,2090.6,2090.3,9.72081]
[1742827477252,3.0,2090.7,2090.4,4.78376]
[1742827477567,7.78313,2090.7,2090.4,1.3969]
[1742827478020,3.0,2090.7,2090.4,1.3969]
[1742827478226,3.0,2090.7,2090.4,6.18063]
[1742827478427,3.0,2090.7,2090.5,4.78345]
[1742827478744,3.0,2090.7,2090.4,6.18055]
[1742827479519,3.0,2090.7,2090.3,10.66893447]
[1742827479856,3.0,2090.7,2090.3,10.66882447]
[1742827480326,3.0,2090.7,2090.4,4.78376]
[1742827480774,3.0,2090.7,2090.3,9.72086]
[1742827481075,7.78316,2090.7,2090.3,9.72086]
[1742827481571,7.78316,2090.7,2090.3,4.937]
[1742827481877,3.0,2090.7,2090.4,4.78358]
[1742827482064,3.0,2090.7,2090.4,4.78377]
[1742827482244,3.0,2090.7,2090.4,4.78364]
[1742827484937,3.0,2090.7,2090.5,4.7834]
[1742827485367,3.0,2090.7,2090.4,4.78375]
[1742827487036,3.0,2090.7,2090.5,4.78349]
[1742827487671,6.09,2090.8,2090.6,4.78317]
[1742827487979,7.3592,2091.0,2090.7,9.71708]
[1742827488547,7.3592,2091.0,2090.7,4.934]
[1742827488775,12.14161,2091.0,2090.7,4.934]
[1742827489285,4.78285,2090.8,2090.7,4.934]
[1742827489957,4.78273,2090.9,2090.7,4.934]
[1742827490359,7.3592,2091.0,2090.7,4.934]
[1742827490565,6.09,2091.0,2090.8,4.7827]
[1742827491096,6.09,2091.0,2090.7,9.71707]
[1742827491589,6.09,2091.0,2090.7,9.717]
[1742827491745,6.09,2091.0,2090.8,1.3473]
[1742827491950,6.09,2091.0,2090.8,6.13011]
[1742827492392,4.78205,2091.2,2091.0,4.78225]
[1742827492393,6.09,2091.2,2091.0,4.78225]
[1742827492598,6.09,2091.2,2090.8,1.70634121]
[1742827492599,6.09,2091.3,2091.1,14.49721]